bitfinex-derivatives/quotes_ETHF0:USTF0_20250326
["timestamp","ask_amount","ask_price","bid_price","bid_amount"]
[1743021788569,3.7754,2014.1,2014.0,47.13682]
[1743021790569,3.7754,2014.1,2014.0,6.33682]
[1743021790963,3.7754,2014.1,2014.0,47.13682]
[1743021791972,3.7754,2014.1,2014.0,47.81281272]
[1743021792679,3.7754,2014.1,2014.0,47.13682]
[1743021797878,2.42698643,2014.1,2014.0,50.92682]
[1743021798175,5.09e-06,2014.3,2014.2,0.99293]
[1743021798378,5.09e-06,2014.3,2014.2,15.05565505]
[1743021798572,5.09e-06,2014.3,2014.2,18.95455505]
[1743021798771,5.09e-06,2014.3,2014.2,19.58095546]
[1743021798980,5.09e-06,2014.3,2014.2,60.38078432]
[1743021799670,4.96023,2016.0,2015.1,0.99244]
[1743021799875,4.96023,2016.0,2014.6,4.29473]
[1743021799876,1.402,2014.7,2014.6,4.29473]
[1743021800072,1.402,2014.7,2014.6,16.87253]
[1743021800580,1.402,2014.7,2014.6,18.27143]
[1743021801081,1.402,2014.7,2014.6,18.65116881]
[1743021803182,1.402,2014.7,2014.6,9.28116881]
[1743021806572,1.402,2014.7,2014.6,7.50153]
[1743021806985,1.402,2014.7,2014.6,4.20053]
[1743021809177,2.39468,2014.7,2014.6,4.20053]
[1743021809379,2.39468,2014.7,2014.6,3.2078]
[1743021809882,2.39468,2014.7,2014.6,4.20053]
[1743021810182,1.402,2014.7,2014.6,4.20053]
[1743021811680,1.402,2014.7,2014.6,5.53363]
[1743021813783,1.402,2014.7,2014.6,6.21059876]
[1743021814179,1.402,2014.7,2014.6,6.21054446]
[1743021814388,1.402,2014.7,2014.6,17.25054446]
[1743021814979,1.402,2014.7,2014.6,17.87898515]
[1743021818087,1.402,2014.7,2014.6,6.83898515]
[1743021819192,1.402,2014.7,2014.6,5.50588515]
[1743021819383,1.402,2014.7,2014.6,4.82897069]
[1743021820083,2.0806,2014.7,2014.6,4.20053]
[1743021822396,2.0806,2014.7,2014.6,4.87821738]
[1743021822793,2.0806,2014.7,2014.6,6.19501738]
[1743021823386,2.0806,2014.7,2014.6,4.87821738]
[1743021823585,2.0806,2014.7,2014.6,4.87835081]
[1743021825381,2.0806,2014.7,2014.6,4.20053]
[1743021825587,2.0806,2014.7,2014.6,4.8786973]
[1743021826890,3.07328,2014.7,2014.6,5.50842909]
[1743021827487,3.07328,2014.7,2014.6,3.83753179]
[1743021827689,3.07328,2014.7,2014.6,3.2078]
[1743021827994,3.07328,2014.7,2014.6,4.20053]
[1743021828391,3.07328,2014.7,2014.6,3.2078]
[1743021828692,0.99278,2014.5,2014.4,1.00025509]
[1743021830998,0.99278,2014.5,2014.4,0.00744509]
[1743021831196,0.99278,2014.5,2014.4,1.00027509]
[1743021831396,0.99278,2014.5,2014.4,0.00744509]
[1743021831783,1.66408,2014.5,2014.4,0.00744509]
[1743021832389,3.02198,2014.5,2014.4,0.00744509]
[1743021834795,5.52198,2014.5,2014.2,3.2078]
[1743021835000,0.99288,2014.3,2014.2,3.2078]
[1743021835496,1.66788,2014.3,2014.2,3.2078]
[1743021836288,1.66788,2014.3,2014.2,4.20073]
[1743021837699,1.66788,2014.3,2014.2,3.2078]
[1743021839195,1.66788,2014.3,2014.1,0.99295]
[1743021839196,0.99293,2014.2,2014.1,0.99295]
[1743021839488,3.06233,2014.2,2014.1,0.99295]
[1743021839801,0.99297,2014.1,2014.0,1.00043509]
[1743021840003,2.35977,2014.1,2014.0,1.00043509]
[1743021840202,2.35977,2014.1,2014.0,1.67813984]
[1743021840402,2.35977,2014.1,2014.0,43.85943509]
[1743021841407,2.35977,2014.1,2014.0,43.18012848]
[1743021841603,2.35977,2014.1,2014.0,42.50246509]
[1743021841805,2.35977,2014.1,2014.0,43.88976509]
[1743021842197,2.35977,2014.1,2014.0,40.80744509]
[1743021844005,2.35977,2014.1,2014.0,41.80046509]
[1743021844412,2.35977,2014.1,2014.0,43.12836509]
[1743021844904,2.35977,2014.1,2014.0,40.80744509]
[1743021845104,0.99312,2013.8,2013.7,2.32105]
[1743021847509,2.33902,2013.8,2013.7,2.32105]
[1743021849208,1.3459,2013.8,2013.7,2.32105]
[1743021850805,2.33902,2013.8,2013.7,2.32105]
[1743021851011,1.3459,2013.8,2013.7,2.32105]
[1743021858429,1.3459,2013.8,2013.7,2.99791737]
[1743021859232,1.3459,2013.8,2013.7,2.99797243]
[1743021861126,1.3459,2013.8,2013.7,43.79797243]
[1743021861330,1.3459,2013.8,2013.7,44.42640418]
[1743021863134,1.3459,2013.8,2013.7,44.42654678]
[1743021863735,1.3459,2013.8,2013.7,42.47021503]
[1743021864032,1.3459,2013.8,2013.7,1.67021503]
[1743021864231,1.3459,2013.8,2013.7,3.02111503]
[1743021864937,1.3459,2013.8,2013.7,3.02082486]
[1743021866134,1.3459,2013.8,2013.7,3.02063819]
[1743021866637,2.33902,2013.8,2013.7,3.02063819]
[1743021866836,2.33902,2013.8,2013.7,0.99315]
[1743021867739,2.33902,2013.8,2013.7,2.99971835]
[1743021868332,2.33902,2013.8,2012.8,9.67897371]
[1743021868333,2.48294,2013.7,2012.8,9.67897371]
[1743021868538,4.2012,2013.3,2013.2,0.99342]
[1743021868738,4.2012,2013.3,2013.2,41.79342]
[1743021868939,1.4392,2013.4,2013.3,0.99337]
[1743021869133,2.43252,2013.4,2013.3,0.99337]
[1743021869434,2.43252,2013.4,2013.3,2.32237]
[1743021869435,1.4392,2013.4,2013.3,2.32237]
[1743021869836,1.4392,2013.4,2013.3,2.95143649]
[1743021870233,2.43252,2013.4,2013.3,2.95143649]
[1743021870634,2.43252,2013.4,2013.3,2.32237]
[1743021871138,1.4392,2013.4,2013.3,2.32237]
[1743021872543,1.4392,2013.4,2013.3,43.12237]
[1743021875549,2.43252,2013.4,2013.3,43.12237]
[1743021876550,1.4392,2013.4,2013.3,43.12237]
[1743021879045,2.43252,2013.4,2013.3,43.12237]
[1743021879249,1.4392,2013.4,2013.3,43.12237]
[1743021880047,1.4392,2013.4,2013.3,45.09237]
[1743021880844,1.4392,2013.4,2013.3,43.12237]
[1743021883445,2.43252,2013.4,2013.3,43.12237]
[1743021883643,1.4392,2013.4,2013.3,43.12237]
[1743021885741,2.43252,2013.4,2013.3,43.12237]
[1743021887740,1.4392,2013.4,2013.3,43.12237]
[1743021888550,1.4392,2013.4,2013.3,43.81417]
[1743021891855,2.43252,2013.4,2013.3,43.81417]
[1743021895357,1.4392,2013.4,2013.3,43.81417]
[1743021895762,1.4392,2013.4,2013.3,44.44278807]
[1743021896961,1.77534509,2013.5,2013.4,0.99332]
[1743021897159,1.77534509,2013.5,2013.4,2.41362]
[1743021897558,2.76861509,2013.5,2013.4,2.04891807]
[1743021897865,2.76861509,2013.5,2013.4,0.62861807]
[1743021897866,3.47241509,2013.5,2013.4,0.62861807]
[1743021898363,0.99332,2013.4,2013.3,0.99334]
[1743021898563,2.99812,2013.4,2013.3,0.99334]
[1743021898766,2.99812,2013.4,2013.3,1.62282434]
[1743021899163,2.99812,2013.4,2013.3,0.62945434]
[1743021899666,0.99342,2013.2,2013.1,40.8]
[1743021899865,0.99342,2013.2,2013.1,43.18172]
[1743021900165,0.99342,2013.2,2013.1,43.811082]
[1743021900864,0.6502,2013.2,2013.1,43.811082]
[1743021901266,2.95692,2013.2,2013.1,43.811082]
[1743021901457,1.3133,2013.2,2013.1,43.811082]
[1743021901662,0.45764509,2013.5,2013.1,46.025462]
[1743021901863,1.4302,2013.4,2013.3,0.99337]
[1743021902068,1.4302,2013.4,2013.3,3.712632]
[1743021902267,1.4302,2013.4,2013.3,4.389032]
[1743021904770,1.4302,2013.4,2013.3,5.129032]
[1743021909870,0.45764509,2013.5,2013.4,0.99332]
[1743021910075,1.78694509,2013.5,2013.4,3.22032]
[1743021910673,1.78694509,2013.5,2013.4,3.849682]
[1743021910877,0.45764509,2013.5,2013.4,3.849682]
[1743021911575,4.20089,2013.9,2013.8,0.99312]
[1743021912968,5.59309,2013.9,2013.8,2.39502]
[1743021913670,4.6,2013.9,2013.8,2.81502]
[1743021913877,1.3922,2013.9,2013.8,2.81502]
[1743021915478,1.3922,2013.9,2013.8,6.10902]
[1743021915680,0.00744509,2014.1,2014.0,0.99302]
[1743021915876,0.00744509,2014.1,2014.0,1.86302]
[1743021916277,0.00744509,2014.1,2014.0,3.84442]
[1743021918184,0.6951,2014.3,2014.2,0.99293]
[1743021918381,3.8715,2014.5,2014.4,0.99283]
[1743021918583,4.5667,2014.5,2014.4,0.99283]
[1743021918881,0.6952,2014.5,2014.4,0.99283]
[1743021919074,0.6952,2014.5,2014.4,2.37933]
[1743021919285,2.0406,2014.5,2014.4,2.37933]
[1743021920083,2.0406,2014.5,2014.4,2.78933]
[1743021921298,1.3454,2014.5,2014.4,2.78933]
[1743021921501,1.3454,2014.5,2014.4,43.58933]
[1743021926600,1.3454,2014.5,2014.4,2.78933]
[1743021942018,2.33818,2014.5,2014.4,1.40283]
[1743021942209,2.33818,2014.5,2014.4,0.41]
[1743021942909,2.33818,2014.5,2014.4,1.40283]
[1743021943612,1.3454,2014.5,2014.4,1.40283]
[1743021943813,2.33818,2014.5,2014.4,1.40283]
[1743021944012,1.3454,2014.5,2014.4,1.40283]
[1743021944315,1.3454,2014.5,2014.4,0.99283]
[1743021944518,1.3454,2014.5,2014.4,2.15223]
[1743021944914,1.3454,2014.5,2014.4,3.46133]
[1743021945315,1.3454,2014.5,2014.4,4.08879529]
[1743021948522,1.3454,2014.5,2014.4,4.03879529]
[1743021948819,2.33818,2014.5,2014.4,4.03879529]
[1743021949016,2.33818,2014.5,2014.4,2.32656529]
[1743021949223,5.54598,2014.5,2014.4,0.62746529]
[1743021949418,0.99293,2014.2,2014.1,5.72145]
[1743021949617,4.20073,2014.2,2014.1,0.42]
[1743021949929,4.20073,2014.2,2013.7,3.11292]
[1743021949930,0.9931,2013.9,2013.8,0.9931]
[1743021950216,0.9931,2013.9,2013.8,0.77]
[1743021950217,4.2009,2013.9,2013.8,0.77]
[1743021950414,0.99317,2013.7,2013.6,0.00744509]
[1743021951216,2.29707,2013.7,2013.6,0.00744509]
[1743021954623,0.99337,2013.3,2013.2,0.9934]
[1743021954821,0.99337,2013.3,2013.2,2.8234]
[1743021955518,2.0759,2013.4,2013.3,0.99337]
[1743021955718,2.0759,2013.4,2013.3,2.39337]
[1743021956415,3.06922,2013.4,2013.3,2.39337]
[1743021958221,3.06922,2013.4,2013.3,43.19337]
[1743021960328,2.0759,2013.4,2013.3,43.19337]
[1743021961223,3.06922,2013.4,2013.3,43.19337]
[1743021961519,2.0759,2013.4,2013.3,43.19337]
[1743021961722,2.39812,2013.4,2013.3,43.19337]
[1743021962023,1.4048,2013.4,2013.3,43.19337]
[1743021962527,2.39812,2013.4,2013.3,43.19337]
[1743021965928,2.39812,2013.4,2013.3,2.39337]
[1743021969228,2.39812,2013.4,2013.3,3.05487]
[1743021976627,2.39812,2013.4,2013.3,2.0615]
[1743021976925,0.99342,2013.2,2013.1,1.65942]
[1743021977129,0.99342,2013.2,2013.1,3.19722]
[1743021977633,3.06432,2013.2,2013.1,3.19722]
[1743021978735,3.06432,2013.2,2013.1,2.98722]
[1743021981934,3.06432,2013.2,2013.1,1.3278]
[1743021982137,0.99347,2013.1,2013.0,41.80092509]
[1743021982336,2.37687,2013.1,2013.0,43.40132509]
[1743021983540,2.37687,2013.1,2013.0,3.23165333]
[1743021983741,2.37687,2013.1,2013.0,1.95817333]
[1743021984039,2.37687,2013.1,2013.0,40.80744509]
[1743021984234,2.37687,2013.1,2013.0,41.80096509]
[1743021984429,2.37687,2013.1,2013.0,40.80744509]
[1743021984636,2.37687,2013.1,2013.0,1.00096509]
[1743021985434,2.37687,2013.1,2013.0,0.00744509]
[1743021987846,2.37687,2013.1,2013.0,1.00096509]
[1743021988144,2.37687,2013.1,2013.0,0.00744509]
[1743021988345,2.37687,2013.1,2013.0,1.00096509]
[1743021994949,2.37687,2013.1,2013.0,0.00744509]
[1743021995250,2.37687,2013.1,2013.0,1.00096509]
[1743021996438,5.58467,2013.1,2013.0,1.00096509]
[1743021996835,5.58467,2013.1,2013.0,0.00744509]
[1743021997036,5.58467,2013.1,2013.0,1.00096509]
[1743021999251,5.58467,2013.1,2013.0,0.00744509]
[1743021999952,5.58467,2013.1,2013.0,1.38564509]
[1743022001545,5.58467,2013.1,2013.0,2.37916509]
[1743022001749,5.58467,2013.1,2013.0,1.38564509]
[1743022002756,5.58467,2013.1,2013.0,2.08744509]
[1743022007057,5.58467,2013.1,2013.0,3.08096509]
[1743022007446,5.58467,2013.1,2013.0,2.08744509]
[1743022012165,0.99376,2012.6,2012.5,0.99373]
[1743022012364,0.99376,2012.6,2012.5,1.91103]
[1743022012859,0.99376,2012.6,2012.5,2.28251979]
[1743022013160,0.99376,2012.6,2012.5,1.28878979]
[1743022013568,0.99376,2012.6,2012.5,3.31788979]
[1743022013863,0.99376,2012.6,2012.5,2.63768979]
[1743022014068,2.40226,2012.6,2012.5,2.63768979]
[1743022014670,2.40226,2012.6,2012.5,2.0062]
[1743022015274,3.10116,2012.6,2012.5,2.0062]
[1743022020475,2.40226,2012.6,2012.5,2.0062]
[1743022021374,2.40226,2012.6,2012.5,2.7051]
[1743022021573,0.99365,2012.8,2012.5,2.7051]
[1743022021780,0.99359,2012.9,2012.8,0.99357]
[1743022022273,3.2078,2013.0,2012.9,0.99357]
[1743022022575,4.20115,2013.4,2013.3,0.99337]
[1743022022780,5.69121,2013.4,2013.0,2.0402]
[1743022022982,0.99347,2013.2,2013.1,2.33469]
[1743022023879,0.99347,2013.2,2013.1,1.3413]
[1743022024482,0.99347,2013.2,2013.1,2.33477]
[1743022024681,0.99347,2013.2,2013.1,1.3413]
[1743022025166,0.99347,2013.2,2013.1,2.33477]
[1743022025370,0.99347,2013.2,2013.1,1.3413]
[1743022026484,0.99371,2012.7,2012.6,0.99368]
[1743022027079,0.99371,2012.6,2012.5,4.28072]
[1743022027275,0.99371,2012.6,2012.5,0.99372]
[1743022027983,0.99371,2012.6,2012.5,2.38932]
[1743022028381,2.30391,2012.7,2012.6,0.99371]
[1743022028686,2.30391,2012.7,2012.6,2.38931]
[1743022029274,2.30391,2012.7,2012.6,1.3956]
[1743022029970,2.30391,2012.7,2012.6,2.38931]
[1743022030168,2.30391,2012.7,2012.6,1.3956]
[1743022034973,0.99371,2012.6,2012.5,0.6709]
[1743022035171,6.25041,2012.6,2012.5,1.3965]
[1743022036275,6.25041,2012.6,2012.5,2.0724]
[1743022036877,6.25041,2012.6,2012.5,3.06616]
[1743022037082,6.25041,2012.6,2012.5,2.0724]
[1743022037280,5.54981,2012.6,2012.5,3.06616]
[1743022037477,3.2078,2012.6,2012.5,3.06616]
[1743022037982,4.20151,2012.6,2012.5,3.06616]
[1743022039289,4.20151,2012.6,2012.5,2.0724]
[1743022040279,5.59471,2012.6,2012.5,2.0724]
[1743022041087,5.59471,2012.6,2012.5,3.06616]
[1743022041389,2.48372,2013.1,2012.6,2.48429]
[1743022041587,0.99362,2012.9,2012.8,0.9936]
[1743022041785,0.99362,2012.9,2012.8,1.645]
[1743022042687,4.20142,2012.9,2012.8,1.645]
[1743022043284,3.2078,2012.9,2012.8,1.645]
[1743022044483,4.20137,2012.9,2012.8,1.645]
[1743022047992,4.20137,2012.9,2012.7,2.38753]
[1743022047993,0.99362,2012.8,2012.7,2.38753]
[1743022048184,2.43072,2012.8,2012.7,2.38753]
[1743022050593,2.43072,2012.8,2012.7,1.3939]
[1743022050997,2.43072,2012.8,2012.7,2.38757]
[1743022051294,2.43072,2012.8,2012.7,1.3939]
[1743022051593,2.43072,2012.8,2012.7,2.38757]
[1743022051797,2.43072,2012.8,2012.7,1.3939]
[1743022052191,2.43072,2012.8,2012.7,2.38757]
[1743022053189,1.4371,2012.8,2012.7,2.38757]
[1743022053395,4.20137,2012.9,2012.8,0.99362]
[1743022053695,4.20137,2012.9,2012.8,2.38272]
[1743022054995,0.99357,2012.9,2012.8,2.38272]
[1743022058494,1.4044,2013.0,2012.8,2.38272]
[1743022058495,2.39797,2013.0,2012.9,0.99357]
[1743022058698,2.39797,2013.0,2012.9,2.36907]
[1743022062202,2.39797,2013.0,2012.9,1.3755]
[1743022062400,2.39797,2013.0,2012.9,2.36907]
[1743022062705,2.39797,2013.0,2012.9,1.3755]
[1743022063295,2.39797,2013.0,2012.9,2.36907]
[1743022064802,2.39797,2013.0,2012.9,1.3755]
[1743022065295,2.39797,2013.0,2012.9,2.36907]
[1743022068806,2.39797,2013.0,2012.9,1.3755]
[1743022070910,2.39797,2013.0,2012.9,2.36907]
[1743022071207,2.39797,2013.0,2012.9,1.3755]
[1743022075903,2.39797,2013.0,2012.9,2.36907]
[1743022076506,2.39797,2013.0,2012.9,3.03347]
[1743022077306,2.39797,2013.0,2012.9,3.66584542]
[1743022078116,2.39797,2013.0,2012.9,2.0399]
[1743022078409,2.39797,2013.0,2012.9,3.03347]
[1743022079912,2.39797,2013.0,2012.9,2.0399]
[1743022080110,2.39797,2013.0,2012.9,3.03347]
[1743022080311,2.39797,2013.0,2012.9,2.0399]
[1743022080613,2.39797,2013.0,2012.9,3.03347]
[1743022082912,2.39797,2013.0,2012.9,3.66622819]
[1743022083415,2.39792,2013.0,2012.9,3.66622819]
[1743022083812,2.39792,2013.0,2012.9,44.46622819]
[1743022085113,0.99349,2013.1,2013.0,0.99352]
[1743022085309,1.4034,2013.1,2013.0,1.3421]
[1743022085711,1.4034,2013.1,2013.0,2.96837819]
[1743022086113,0.99338,2013.3,2013.2,0.99342]
[1743022086718,0.99338,2013.3,2013.2,3.01402]
[1743022087107,0.99338,2013.3,2013.2,3.64630443]
[1743022087307,1.4034,2013.4,2013.3,0.99337]
[1743022087517,2.39672,2013.4,2013.3,2.33297]
[1743022087717,1.4034,2013.4,2013.3,2.33297]
[1743022088519,1.4034,2013.4,2013.3,2.96506746]
[1743022088920,2.39672,2013.4,2013.3,2.33297]
[1743022091620,1.4034,2013.4,2013.3,2.33297]
[1743022092018,2.39672,2013.4,2013.3,2.33297]
[1743022092723,2.39672,2013.4,2013.3,1.3396]
[1743022092920,0.99337,2013.3,2013.2,0.6785]
[1743022093120,3.06997,2013.3,2013.2,2.0667]
[1743022093316,4.56011,2013.3,2012.9,7.48335]
[1743022093523,0.99347,2013.1,2013.0,1.9596]
[1743022093726,0.99347,2013.1,2013.0,1.3]
[1743022093917,2.31797,2013.1,2013.0,1.3]
[1743022094526,0.99362,2012.8,2012.7,0.99365]
[1743022094713,4.20142,2012.8,2012.7,2.28430592]
[1743022095123,0.99362,2012.8,2012.7,2.28430592]
[1743022095324,0.99362,2012.8,2012.7,1.65325]
[1743022095721,1.70051,2012.9,2012.8,0.99362]
[1743022096025,3.02501,2012.9,2012.8,2.29362]
[1743022096823,0.99355,2013.0,2012.9,0.99352]
[1743022097026,0.99355,2013.0,2012.9,2.38132]
[1743022097027,2.34785,2013.0,2012.9,2.38132]
[1743022097224,5.5556,2013.1,2013.0,0.99352]
[1743022097528,5.5556,2013.1,2013.0,2.38132]
[1743022098023,3.2078,2013.1,2013.0,2.38132]
[1743022098321,1.3543,2013.3,2013.2,0.99342]
[1743022098525,0.99334,2013.4,2013.3,0.99337]
[1743022098718,2.34764,2013.4,2013.3,0.99337]
[1743022098922,2.34764,2013.4,2013.3,41.79337]
[1743022100028,2.34764,2013.4,2013.3,0.99337]
[1743022101125,2.34762,2013.4,2013.3,0.99337]
[1743022103532,1.3543,2013.4,2013.3,0.99337]
[1743022103828,2.34762,2013.4,2013.3,0.99337]
[1743022104624,1.3543,2013.4,2013.3,0.99337]
[1743022106334,2.34762,2013.4,2013.3,0.99337]
[1743022107632,1.3543,2013.4,2013.3,0.99337]
[1743022108921,2.34762,2013.4,2013.3,0.99337]
[1743022109527,2.48343,2013.3,2012.7,2.48407]
[1743022109728,0.9935,2013.1,2013.0,0.99347]
[1743022110333,2.3992,2013.1,2013.0,0.99347]
[1743022110737,1.4057,2013.1,2013.0,0.99347]
[1743022110940,2.39917,2013.1,2013.0,0.99347]
[1743022111326,1.4057,2013.1,2013.0,0.99347]
[1743022111535,2.39917,2013.1,2013.0,0.99347]
[1743022112937,3.2078,2013.2,2013.1,0.99347]
[1743022113238,1.415,2013.3,2013.2,0.99342]
[1743022113437,1.69502509,2013.5,2013.4,0.99332]
[1743022113935,1.69502509,2013.5,2013.4,41.79332]
[1743022114733,3.10922509,2013.5,2013.4,41.79332]
[1743022119531,3.10922509,2013.5,2013.4,0.99332]
[1743022121234,0.99332,2013.4,2013.3,2.29643]
[1743022121531,3.08882,2013.4,2013.3,2.29643]
[1743022122832,0.99337,2013.3,2013.2,40.8]
[1743022123139,0.99347,2013.1,2013.0,1.64747]
[1743022123436,0.99347,2013.1,2013.0,43.76577]
[1743022124038,2.43477,2013.1,2013.0,43.76577]
[1743022128246,2.43477,2013.1,2013.0,2.96577]
[1743022140554,0.99357,2012.9,2012.8,0.99357]
[1743022140753,0.99371,2012.6,2012.5,0.99373]
[1743022140948,0.99371,2012.7,2012.6,0.99369]
[1743022141657,0.99376,2012.5,2012.4,1.3547]
[1743022141957,0.99376,2012.5,2012.4,1.4297]
[1743022142155,0.99398,2012.1,2012.0,0.99398]
[1743022142352,4.20171,2012.3,2012.1,0.99396]
[1743022142664,0.00744509,2012.3,2012.2,5.51731]
[1743022142959,4.20147,2012.7,2012.6,0.99371]
[1743022143658,3.2078,2012.7,2012.6,0.99371]
[1743022144159,5.50757,2012.7,2012.6,0.99371]
[1743022144352,5.50757,2012.7,2012.6,3.02351]
[1743022145660,4.5139,2012.7,2012.6,3.02351]
[1743022147758,0.00744509,2012.9,2012.8,0.99362]
[1743022148470,0.00744509,2012.9,2012.8,41.79362]
[1743022148761,0.00744509,2012.9,2012.8,43.81764658]
[1743022151069,0.00744509,2012.9,2012.8,47.02544658]
[1743022152068,0.00744509,2012.9,2012.8,50.30444658]
[1743022154159,1.3378,2013.1,2013.0,0.99352]
[1743022154753,1.3378,2013.1,2013.0,3.06694658]
[1743022155767,0.69774509,2013.3,2013.2,0.99342]
[1743022156160,1.69111509,2013.3,2013.2,0.99342]
[1743022156559,0.69774509,2013.3,2013.2,0.99342]
[1743022156765,1.69111509,2013.3,2013.2,0.99342]
[1743022156963,3.07531509,2013.3,2013.2,0.99342]
[1743022158261,2.08194509,2013.3,2013.2,0.99342]
[1743022158757,2.08194509,2013.3,2013.2,1.69812]
[1743022161764,2.08194509,2013.3,2013.2,3.01292]
[1743022168164,0.9932,2013.7,2013.6,0.99317]
[1743022168374,0.6536,2013.7,2013.6,0.99317]
[1743022168771,0.99311,2013.9,2013.8,0.99312]
[1743022169270,0.6536,2014.0,2013.9,0.99307]
[1743022169573,2.36522,2014.0,2013.9,0.99307]
[1743022169773,1.3722,2014.0,2013.9,0.99307]
[1743022169967,2.36522,2014.0,2013.9,0.99307]
[1743022170267,1.3722,2014.0,2013.9,2.37107]
[1743022170972,2.36522,2014.0,2013.9,2.37107]
[1743022171367,3.75462,2014.0,2013.9,2.37107]
[1743022175282,2.7616,2014.0,2013.9,2.37107]
[1743022175476,3.75462,2014.0,2013.9,2.37107]
[1743022176775,2.7616,2014.0,2013.9,2.37107]
[1743022177076,3.75462,2014.0,2013.9,2.37107]
[1743022180579,2.7616,2014.0,2013.9,2.37107]
[1743022180875,0.00744509,2014.1,2014.0,0.99302]
[1743022181072,1.34184509,2014.1,2014.0,2.32452]
[1743022181470,1.34184509,2014.1,2014.0,43.12452]
[1743022183674,2.33481509,2014.1,2014.0,43.12452]
[1743022184467,0.00744509,2014.1,2014.0,46.39952]
[1743022184974,3.2078,2014.5,2014.4,0.99283]
[1743022185179,0.99277,2014.6,2014.5,0.99272]
[1743022185376,0.99274,2014.7,2014.6,0.9927]
[1743022185570,2.36774,2014.7,2014.6,0.9927]
[1743022185973,2.36774,2014.7,2014.6,2.3235]
[1743022187783,0.99267,2014.8,2014.7,0.99268]
[1743022187983,3.09254509,2014.9,2014.8,0.99263]
[1743022188284,2.09994509,2014.9,2014.8,0.99263]
[1743022188582,3.09252509,2014.9,2014.8,0.99263]
[1743022188774,3.09252509,2014.9,2014.8,1.67703]
[1743022190287,3.09252509,2014.9,2014.8,0.6844]
[1743022191785,3.09252509,2014.9,2014.8,1.67703]
[1743022194584,0.99263,2014.8,2014.7,1.64454]
[1743022194782,2.41963,2014.8,2014.7,1.64454]
[1743022195886,1.427,2014.8,2014.7,1.64454]
[1743022196589,2.41963,2014.8,2014.7,1.64454]
[1743022197794,1.427,2014.8,2014.7,1.64454]
[1743022197979,0.66254509,2014.9,2014.7,0.6519]
[1743022198186,1.65512509,2014.9,2014.8,0.99263]
[1743022200489,1.65512509,2014.9,2014.8,2.38493]
[1743022200783,1.65512509,2014.9,2014.6,6.48176509]
[1743022200784,0.99268,2014.7,2014.6,0.00744509]
[1743022200983,0.99268,2014.7,2014.6,1.00017509]
[1743022201385,2.33303,2014.8,2014.7,0.99268]
[1743022201691,4.86294509,2014.9,2014.8,0.99263]
[1743022201887,4.86294509,2014.9,2014.8,1.70313]
[1743022202089,4.86294509,2014.9,2014.8,3.09543]
[1743022204395,4.86294509,2014.9,2014.8,1.3923]
[1743022204597,2.34434509,2014.9,2014.8,1.3923]
[1743022204991,0.99268,2014.7,2014.6,1.00017509]
[1743022206394,0.99268,2014.7,2014.6,2.39017509]
[1743022206791,2.37758,2014.8,2014.7,0.99268]
[1743022206988,2.37758,2014.8,2014.7,2.38268]
[1743022208193,2.37758,2014.8,2014.7,1.39]
[1743022208798,2.37758,2014.8,2014.7,2.38268]
[1743022211003,2.37758,2014.8,2014.7,1.39]
[1743022211389,2.37758,2014.8,2014.7,2.38268]
[1743022214405,2.37758,2014.8,2014.7,1.39]
[1743022215903,2.37758,2014.8,2014.7,2.38268]
[1743022216102,2.37758,2014.8,2014.7,1.39]
[1743022216599,2.37758,2014.8,2014.7,2.38268]
[1743022216803,2.37758,2014.8,2014.7,1.39]
[1743022219701,2.37758,2014.8,2014.7,1.43967615]
[1743022220403,2.37758,2014.8,2014.7,0.09845968]
[1743022221307,12.12017,2014.8,2014.1,5.988]
[1743022221606,0.99293,2014.2,2014.1,6.98096]
[1743022221800,0.99293,2014.2,2014.1,7.61165495]
[1743022222402,0.99293,2014.2,2014.1,6.98096]
[1743022222607,2.42003,2014.2,2014.1,8.39536]
[1743022224513,2.42003,2014.2,2014.1,2.40736]
[1743022230914,2.42003,2014.2,2014.1,2.45693192]
[1743022231507,2.42003,2014.2,2014.1,2.50650384]
[1743022232210,2.42003,2014.2,2014.1,2.55607576]
[1743022232714,2.42003,2014.2,2014.1,2.55821464]
[1743022236116,2.42003,2014.2,2014.1,1.56525464]
[1743022236813,2.42003,2014.2,2014.1,2.55822464]
[1743022237412,2.42003,2014.2,2014.1,1.56525464]
[1743022238724,2.42003,2014.2,2014.1,0.15085464]
[1743022245123,5.62783,2014.2,2014.1,0.15085464]
[1743022247330,4.20073,2014.2,2014.1,1.14382464]
[1743022247523,4.20073,2014.2,2014.1,2.50532464]
[1743022248017,5.83,2014.6,2014.3,3.47506]
[1743022248220,4.2005,2014.7,2014.6,0.99273]
[1743022248927,4.2005,2014.7,2014.6,1.14358464]
[1743022249129,4.2005,2014.7,2014.6,2.45968464]
[1743022252139,0.00744509,2014.9,2014.8,0.99263]
[1743022252339,1.00002509,2014.9,2014.8,0.99263]
[1743022252839,1.00002509,2014.9,2014.8,1.14348464]
[1743022253537,0.00744509,2014.9,2014.8,1.14348464]
[1743022254531,1.00002509,2014.9,2014.8,1.14348464]
[1743022254736,0.00744509,2014.9,2014.8,1.14348464]
[1743022256042,0.00744509,2014.9,2014.8,41.94348464]
[1743022260241,1.00002509,2014.9,2014.8,42.64028464]
[1743022260549,2.31752509,2014.9,2014.8,0.15085464]
[1743022260842,2.31752509,2014.9,2014.8,1.14348464]
[1743022261536,0.00744509,2014.9,2014.8,1.14348464]
[1743022261945,1.00002509,2014.9,2014.8,1.14348464]
[1743022262152,0.00744509,2014.9,2014.8,1.14348464]
[1743022262839,1.00002509,2014.9,2014.8,1.14348464]
[1743022265343,2.42712509,2014.9,2014.8,1.14348464]
[1743022268843,2.42712509,2014.9,2014.8,0.15085464]